Cogmind - Beta 14 @@@ ROGUE MODE // 2024.12.22 @ 02:13:14 Player: opdo Result: Destroyed by FZ-WFC(R) with Subdweller Laser Performance ------------- Evolutions (0) 0 Regions Visited (3) 600 Robots Destroyed (17) 85 Value Destroyed (317) 317 Prototype IDs (0) 0 Alien Tech Used (0) 0 Bonus (0) 0 TOTAL SCORE: 1002 Bonus ------- None Cogmind --------- Core Integrity 0/250 Matter 262/300 Energy 62/100 System Corruption 0% Temperature Cool (10) Movement Flying (37) Location -10/Subcaves Parts ------- > --- POWER (1) -------- (None) > --- PROPULSION (2) --- Flight Unit Flight Unit > --- UTILITY (2) ------ (None) > --- WEAPON (2) ------- Light Assault Rifle > --- INVENTORY (5) ---- Aluminum Leg Hacking Suite Hacking Suite Light Assault Rifle Peak State ------------ > --- POWER ------------ Ion Engine > --- PROPULSION ------- Aluminum Leg Aluminum Leg > --- UTILITY ---------- Small Storage Unit Improved Terrain Scanner > --- WEAPON ----------- Assault Rifle Assault Rifle > --- INVENTORY -------- Light Treads Light Treads Wheel Flight Unit Flight Unit Flight Unit Hacking Suite Mining Laser [Rating: 10] Favorites ----------- Power Light Ion Engine Engine Light Ion Engine Propulsion Aluminum Leg Leg Aluminum Leg Flight Unit Flight Unit Utility Small Storage Unit Device Improved Terrain Scanner Storage Small Storage Unit Weapon Light Assault Rifle Ballistic Gun Light Assault Rifle Special Weapon Mining Laser Build | -11 -10 -10 -10 ------- Run | Yrd Mat Min Sub Slots Evolved . | . . . . Power . | . . . . Propulsion . | . . . . Utility . | . . . . Weapon . | . . . . Parts Attached 19 | 7 4 2 6 Power 2 | 1 1 . . Engine 2 | 1 1 . . Core . | . . . . Reactor . | . . . . Propulsion 7 | 2 . 1 4 Treads . | . . . . Leg 4 | 2 . 1 1 Wheel . | . . . . Hover . | . . . . Flight 3 | . . . 3 Utility 2 | 2 . . . Device 1 | 1 . . . Storage 1 | 1 . . . Processor . | . . . . Hackware . | . . . . Protection . | . . . . Artifact . | . . . . Weapon 8 | 2 3 1 2 Energy Gun . | . . . . Energy Cannon . | . . . . Ballistic Gun 6 | 2 3 . 1 Ballistic Cannon . | . . . . Launcher . | . . . . Special Weapon 2 | . . 1 1 Impact Weapon . | . . . . Slashing Weapon . | . . . . Piercing Weapon . | . . . . Special Melee Weapon . | . . . . Unidentified Prototypes . | . . . . Parts Lost 4 | . . 1 3 Power 1 | . . . 1 Propulsion 1 | . . . 1 Utility 1 | . . 1 . Weapon 1 | . . . 1 Highest Loss Streak 2 | . . 1 2 To Critical Strikes . | . . . . Average Slot Usage (%) 87 | . 100 89 63 Engine 11 | . 14 14 2 Leg 25 | . 28 28 17 Flight 2 | . . . 9 Device 6 | . 14 3 . Storage 11 | . 14 14 4 Ballistic Gun 23 | . 28 22 19 Special Weapon 4 | . . 5 7 Peak Build Rating 10 | 9 10 10 7 Average Rating 7 | 5 9 7 4 On Entrance 6 | . 9 10 7 Naked Turns . | . . . . Heaviest Build 15 | 15 15 11 10 Greatest Support 20 | 20 20 20 20 Greatest Overweight (x) 3 | 3 . . . Average Overweight (x) . | . . . . Largest Inventory Capacity 8 | 8 8 8 8 Average Capacity 7 | 7 8 8 6 Most Carried 8 | 4 8 8 8 Average Carried 6 | 1 7 8 6 Final Capacity 8 | 8 8 8 5 Final Carried 8 | 4 8 8 4 Class Distribution -------------------- 100% | Mutant Dominant Class ---------------- Mutant | -10/Materials Mutant | -10/Mines Mutant | -10/Subcaves Resources | -11 -10 -10 -10 ----------- Run | Yrd Mat Min Sub Matter Collected 502 | 94 335 41 32 Remotely . | . . . . Salvage Created 415 | 20 278 87 30 Parts 37 | 3 29 2 3 Haulers Intercepted 1 | . 1 . . Recyclers Shooed 1 | . . 1 . Parts Field Recycled . | . . . . Retrieved Matter . | . . . . Parts Self-Destructed 5 | . . . 5 Prevented . | . . . . Kills | -11 -10 -10 -10 ------- Run | Yrd Mat Min Sub Combat Hostiles Destroyed 13 | . 9 2 2 Guns 13 | . 9 2 2 Classes Destroyed 5 | 1 4 . . Tunneler 1 | 1 . . . Hauler 1 | . 1 . . Operator 2 | . 2 . . Swarmer 8 | . 6 . 2 Grunt 5 | . 3 2 . Best Kill Streak 6 | 1 6 2 2 Combat Bots Only 6 | . 6 2 2 Max Kills in Single Turn 1 | 1 1 1 1 Gunslinging . | . . . . Exploded . | . . . . Melee . | . . . . Uniques/NPCs Destroyed . | . . . . Combat | -11 -10 -10 -10 -------- Run | Yrd Mat Min Sub Hostile Shots Fired 95 | . 44 15 36 Missed 21 | . 9 2 10 Damage Taken 840 | . 317 179 344 Core 254 | . 35 61 158 Absorbed by Shields . | . . . . Core Remaining (%) 100 | 100 . . . Volleys Fired 53 | 2 25 11 15 Largest 2 | 2 2 2 2 Hottest 100 | 40 40 100 100 Shots Fired 96 | 4 50 19 23 Gun 87 | 4 50 16 17 Cannon . | . . . . Launcher . | . . . . Special 9 | . . 3 6 Kinetic 87 | 4 50 16 17 Thermal 9 | . . 3 6 Explosive . | . . . . Electromagnetic . | . . . . Robot Hit Streak 8 | 1 8 7 5 Robot Miss Streak 4 | 3 2 2 4 Penetration Max . | . . . . Secondary Targets 2 | . 1 1 . Max Gunslinging Chain 1 | . 1 1 . Shots Hit Robots 56 | 1 35 12 8 Core Hits 27 | 1 16 7 3 Critical Kills . | . . . . Critical Parts Destroyed 1 | . . . 1 Critical Strikes 1 | . . . 1 Destroy 1 | . . . 1 Melee Attacks . | . . . . Impact . | . . . . Slashing . | . . . . Piercing . | . . . . Sneak Attacks . | . . . . Combat Hostiles . | . . . . Follow-up Attacks . | . . . . Damage Inflicted 644 | 12 445 124 63 Guns 626 | 12 442 109 63 Cannons . | . . . . Explosions . | . . . . Melee . | . . . . Ramming 18 | . 3 15 . Kinetic 626 | 12 442 109 63 Thermal . | . . . . Explosive . | . . . . Electromagnetic . | . . . . Impact . | . . . . Slashing . | . . . . Piercing . | . . . . Highest Corruption . | . . . . Average Corruption . | . . . . Corruption Purged . | . . . . Corruption Blocked . | . . . . Overload Shots . | . . . . Overflow Damage . | . . . . Projectiles . | . . . . Explosions . | . . . . Melee . | . . . . Knockbacks . | . . . . Impact . | . . . . Kinetic . | . . . . Secondary . | . . . . Self-Inflicted Damage . | . . . . Shots . | . . . . Rammed . | . . . . Targets Rammed 5 | . 1 4 . Kicked 5 | . 1 4 . Crushed . | . . . . Highest Temperature 56 | . 9 56 . Average Temperature 20 | . 4 22 . Received Heat Transfer 207 | . 78 117 12 Siege Activations . | . . . . Robots Corrupted . | . . . . Combat Hostiles . | . . . . Parts Fried . | . . . . Impact Corruptions . | . . . . Robots Melted . | . . . . Combat Hostiles . | . . . . Parts Melted 2 | . . 2 . Heat Transferred . | . . . . Parts Sabotaged . | . . . . Parts Stolen . | . . . . Parts Stripped . | . . . . Power Chain Reactions . | . . . . Alert | -11 -10 -10 -10 ------- Run | Yrd Mat Min Sub Peak Influence 315 | 5 315 164 . Initial 122 | . 3 122 . Average 165 | . 227 149 . Maximum Alert Level 1 | . 1 . . Low Security (%) 75 | 100 36 100 . Level 1 24 | . 63 . . Level 2 . | . . . . Level 3 . | . . . . Level 4 . | . . . . Level 5 . | . . . . High Security . | . . . . Max Security . | . . . . Squads Dispatched 1 | . 1 . . Investigation . | . . . . Extermination . | . . . . Reinforcement 1 | . 1 . . Assault . | . . . . Garrison . | . . . . Intercept . | . . . . Searches Triggered . | . . . . Construction Impeded . | . . . . Haulers Reinforced . | . . . . Active Scanning Responses . | . . . . Cargo Convoy Interrupts . | . . . . Stealth | -11 -10 -10 -10 --------- Run | Yrd Mat Min Sub Distress Signals 2 | . 1 1 . Communications Jammed . | . . . . Distress Signals . | . . . . Times Spotted 21 | . 12 2 7 Peak Tracking Total 7 | . 7 2 4 Tactical Retreats 2 | . 2 . . Traps | -11 -10 -10 -10 ------- Run | Yrd Mat Min Sub Traps Triggered . | . . . . Indirectly . | . . . . Trap Hack Attempts . | . . . . Triggered . | . . . . Disarmed . | . . . . Reprogrammed . | . . . . Reused . | . . . . Traps Extracted . | . . . . Installed . | . . . . Triggered . | . . . . Machines | -11 -10 -10 -10 ---------- Run | Yrd Mat Min Sub Machines Disabled . | . . . . Max in Single Turn . | . . . . Machines Repaired . | . . . . Machines Dismantled . | . . . . Machines Sabotaged . | . . . . Overloaded Fab Kills . | . . . . Hacking | -11 -10 -10 -10 --------- Run | Yrd Mat Min Sub Machines Accessed 3 | . 3 . . Terminals 3 | . 3 . . Fabricators . | . . . . Repair Stations . | . . . . Recycling Units . | . . . . Scanalyzers . | . . . . Garrison Access . | . . . . Total Hacks 10 | . 10 . . Successful 3 | . 3 . . Failed 7 | . 7 . . Catastrophic 1 | . 1 . . Database Lockouts . | . . . . Manual 9 | . 9 . . Terminals 10 | . 10 . . Fabricators . | . . . . Repair Stations . | . . . . Recycling Units . | . . . . Scanalyzers . | . . . . Garrison Access . | . . . . Terminal Hacks 1 | . 1 . . Robot Analysis 1 | . 1 . . Fabricator Hacks . | . . . . Repair Station Hacks . | . . . . Recycling Unit Hacks . | . . . . Scanalyzer . | . . . . Garrison Access Hacks . | . . . . Unauthorized Hacks 2 | . 2 . . Terminals 2 | . 2 . . Botnet 2 | . 2 . . Fabricators . | . . . . Repair Stations . | . . . . Recycling Units . | . . . . Scanalyzers . | . . . . Garrison Access . | . . . . Data Cores Recovered . | . . . . Used . | . . . . Hacking Detections 3 | . 3 . . Full Trace Events 1 | . 1 . . Feedback Events . | . . . . Feedback Blocked . | . . . . Robot Schematics Acquired . | . . . . Robots Built . | . . . . Authchips . | . . . . Time . | . . . . Total Robot Build Rating . | . . . . Part Schematics Acquired . | . . . . Parts Built . | . . . . Authchips . | . . . . Time . | . . . . Total Part Build Rating . | . . . . Parts Repaired . | . . . . Time . | . . . . Parts Recycled . | . . . . Recycled Matter . | . . . . Retrieved Matter . | . . . . Retrieved Components . | . . . . Parts Scanalyzed . | . . . . Part Schematics Acquired . | . . . . Parts Damaged . | . . . . Bothacking | -11 -10 -10 -10 ------------ Run | Yrd Mat Min Sub Used RIF Installer . | . . . . Robots Hacked . | . . . . Non-combat . | . . . . Combat . | . . . . Robot Hacks Applied . | . . . . Relay Couplers Released . | . . . . Fabnet Peak Effective % . | . . . . Robots Rewired . | . . . . Allies Hacked . | . . . . Hacks Repelled . | . . . . Allies | -11 -10 -10 -10 -------- Run | Yrd Mat Min Sub Total Allies . | . . . . Largest Group . | . . . . Highest-Rated Group . | . . . . Highest-Rated Ally . | . . . . Total Orders . | . . . . Ally Attacks . | . . . . Total Damage . | . . . . Kills . | . . . . Allies Corrupted . | . . . . Allies Melted . | . . . . Intel | -11 -10 -10 -10 ------- Run | Yrd Mat Min Sub Robot Analysis Total 1 | . 1 . . Derelict Logs Recovered 2 | . . 1 1 Drone Launches . | . . . . Drone Recoveries . | . . . . Exploration | -11 -10 -10 -10 ------------- Run | Yrd Mat Min Sub Turns Passed 970 | 78 306 393 193 Spaces Moved 706 | 47 179 282 198 Core 12 | 12 . . . Treads . | . . . . Legs 521 | 35 179 282 25 Wheels . | . . . . Hover . | . . . . Flight 173 | . . . 173 Fastest Speed 37 | 50 120 120 37 Average Speed 103 | 124 120 120 58 Slowest Speed 200 | 200 120 120 120 Overloaded Moves . | . . . . Propulsion Burnouts . | . . . . Robots Hopped 1 | . . . 1 Cave-ins Triggered . | . . . . Exploration Rate (%) 28 | 4 28 66 17 Regions Visited 3 Branch Regions 2 Pre-discovered Areas 2 | . . 1 1 Known Exits Taken . | . . . . Unknown Exits Taken 3 | 1 1 1 . Scrap Searched . | . . . . Spaces Dug 3 | . . 3 . Terrain Destroyed 3 | . . 3 . Melee . | . . . . Projectile 3 | . . 3 . AOE . | . . . . Terrain Rammed . | . . . . Walls Destroyed . | . . . . Machines Disabled . | . . . . Actions | -11 -10 -10 -10 --------- Run | Yrd Mat Min Sub Total 839 | 59 223 314 243 Wait 39 | . 5 15 19 Move 701 | 46 178 281 196 Hop 1 | . . . 1 Pick Up 9 | 4 5 . . Fast Attach 9 | 7 . . 2 Attach 1 | . . . 1 Detach . | . . . . Swap 9 | . 4 2 3 Drop 12 | . 5 1 6 Fire 53 | 2 25 11 15 Melee . | . . . . Ram . | . . . . Kick 5 | . 1 4 . Crush . | . . . . Escape Stasis . | . . . . Rewire . | . . . . Trap . | . . . . Miscellaneous . | . . . . Route ------- -11/Scrapyard -10/Materials -10/Mines (discovered 3 exits: [*Mat x2] / [*Sub]) -10/Subcaves (discovered 1 exit: [*Mat]) History --------- Turn | Location | Event 18 | -11/Scrapyard | Discovered new exit (range 14) 79 | -11/Scrapyard | Entered Materials 312 | -10/Materials | Build established: Mutant 364 | -10/Materials | Discovered new exit (range 9) 385 | -10/Materials | Entered Mines 459 | -10/Mines | Learned location of Zion (-6) 470 | -10/Mines | Met a Derelict bent on vengeance 533 | -10/Mines | Assembled infested the area 596 | -10/Mines | Discovered new exit (range 12) 672 | -10/Mines | Discovered new exit (range 9) 772 | -10/Mines | Discovered new exit (range 5) 778 | -10/Mines | Entered Subcaves 780 | -10/Subcaves | Learned location of Storage (-7) 824 | -10/Subcaves | Core integrity fell below 50% 873 | -10/Subcaves | Discovered new exit (range 7) 971 | -10/Subcaves | Core integrity fell below 20% 971 | -10/Subcaves | Destroyed by FZ-WFC(R) with Subdweller Laser Last Messages --------------- 00836_ Acquired 20 matter. 00839_ Dropped Aluminum Leg. 00840_ Flight Unit fries itself beyond repair. 00840_ Dropped Aluminum Leg. 00840_ Acquired Aluminum Leg. 00843_ Lgt. Assault Rifle fries itself beyond repair. 00843_ Acquired Flight Unit. 00844_ Subatomizers dissect the Aluminum Leg. 00845_ Dropped Lgt. Treads. 00846_ Dropped Flight Unit. 00846_ Dropped Sml. Storage Unit. 00852_ Acquired 12 matter. 00863_ ID-85I(u) builds Twisted Machinery. 00873_ EXIT=FOUND 00886_ ID-85I(u) builds Twisted Machinery. FZ-WFC(R) emerges from concealment. 00967_ Mining Laser destroyed. 00967_ Flight Unit destroyed. 00968_ 2Q-YSD(R) suffers critical hit (Destroy). Map ----- +----------------------------------------------------+ | ""#??????????????????????????????????????????????? | | " ##?????#???????????????????????????????????????? | | "" ### ?????????????????????????????????????? | | ??????????????????????????????????????? | | ## ?????????????????????????????????????????? | | ##?###??????????????????????????????????????????? | | ##???????????????????#??????????????????????????? | | #??????????????????# ?????????????????????????? | | #?????????????????? ????????????????????????? | | ##????????????????# #???????????????????????? | | ####?????# ?????## ????????????????????????? | | #?##?## ?#### ????????????????????????? | | ###?# # # ## ?????????????????????????? | | #???# ? ??????????????????????????? | | #???# ?? #??????????????????????????? | | #???# ##?? ###????????????????????????? | | ###??? ????# #????????????????????????? | | # ### ???## #??????????#####?????????? | | ##??# #?????????## #?????????? | | ### ## # #### R #?????????# #??????????? | | #??###??## ## ## ##?####???# ##??????????? | | #???????## ## ##??# ##??????????? | | #??????## R #??# ##?????????? | | #####??# # # #####; #?## #?????????? | | ##?# #######???#; #### #?????????? | | ### #??????????#; @ ;##### ##?????????? | | ### ##??????????#; R ;##"" ##??????????? | | ###?# ##?????# #; ;### ####???????????? | | #???## #??????# ; ; " #???????????? | | ?????## ##?????# #; "" #???????????? | | ??????###???# ## " #???????????? | | ????????????# ??# ""#???????????? | | ????????????## ? ???#; ##??????????? | | ?????????????#? #????#; #?????????? | | ?????????????? ?????## #?????????? | | ?????????????? ???????# ##?????????? | | ??????????????##????????### R ##??????????? | | ??????????????????????????# ##???????????? | | ??????????????????????????# ##????????????? | | ??????????????????????????# ##?????????????? | | ??????????????????????????## ###??????????????? | | ???????????????????????????# #????????????????? | | ??????????????????????????? ????????????????? | | ??????????????????????????? ????????????????? | | ?????????????????????????? #### ????????????????? | | ?????????????????????????? ????#????????????????? | | ?????????????????????????? #?????????????????????? | | ?????????????????????????? ??????????????????????? | | ?????????????????????????????????????????????????? | | ?????????????????????????????????????????????????? | +----------------------------------------------------+ Best States ------------- Heat Dissipation 25 Energy Generation 10 Energy Capacity 250 Matter Stores 300 Matter Capacity 300 Sight Range 16 Terrain Scan Range 16 Terrain Scan Density 10 Evasion (%) 60 Item Schematics ----------------- None Robot Schematics ------------------ None Fabricated ------------ Nothing Alien Tech Used ----------------- None Achievements -------------- None Challenges ------------ None Game ------ Seed ShockVisualBasin Manual? 0 Play Time 00:08:25 Cumulative 66.0 hours Start 2024.12.22 @ 02:06:45 End 2024.12.22 @ 02:13:14 Sessions 1 Manual Loads 0 Difficulty Rogue Special Mode None Game No. 193 Rogue 191 Adventurer 2 Explorer 0 Win Type - Total 1 Types 1/0/0/0/0/0/0/0/0 Lore% 63 Gallery% 55 Achievement% 43 Wizard Run 0 Options --------- Layout 2 ASCII 0 Keyboard 0 Movement Arrows Keybinds 0 Fullscreen 2 Font 24/Smallcaps Map View 50x44 Zoom Use 0% Tactical HUD 1 Map Filters NONE Filters NONE Steam 1 RUN: 269220c9-4118-45e8-9882-73d58250a5d4